[Event "2nd Kalyan Dombivali 2019"]
[Site "Kalyan"]
[Date "2019.01.31"]
[Round "4"]
[White "Manthan Vijayrao Kale"]
[Black "Kshatriya Nitin Vekhande"]
[Result "1/2-1/2"]
[ECO "B77"]
[WhiteElo "1228"]
[BlackElo "1544"]
[Annotator "NA RC"]
[PlyCount "216"]
[EventDate "2019.01.28"]
[EventType "swiss"]
[EventRounds "10"]
[EventCountry "IND"]
[SourceTitle "playchess.com"]
[Source "ChessBase"]
[SourceQuality "1"]
[TimeControl "5400+30"]

1. e4 {[%emt 0:00:00]} c5 {[%emt 0:00:00]} 2. Nf3 {[%emt 0:00:00]} d6 {[%emt 0:00:00]} 3. d4 {[%emt 0:00:19]} cxd4 {[%emt 0:00:00]} 4. Nxd4 {[%emt 0:00:12]} Nf6 {[%emt 0:00:11]} 5. Nc3 {[%emt 0:00:22]} g6 {[%emt 0:00:11]} 6. Be3 {[%emt 0:00:54]} Bg7 {[%emt 0:00:08]} 7. f3 {[%emt 0:00:14]} O-O {[%emt 0:00:31]} 8. Qd2 {[%emt 0:00:12]} Nc6 {[%emt 0:00:18]} 9. Bc4 {[%emt 0:00:56]} Bd7 {[%emt 0:00:10]} 10. Nxc6 {[%emt 0:00:13]} bxc6 {[%emt 0:00:26]} 11. h4 {[%emt 0:00:35]} h5 {[%emt 0:03:17]} 12. Bh6 {[%emt 0:02:28]} Kh7 {[%emt 0:00:58]} 13. Bxg7 {[%emt 0:01:46]} Kxg7 {[%emt 0:00:06]} 14. O-O-O {[%emt 0:02:09]} Rh8 {[%emt 0:00:52]} 15. Rhe1 {[%emt 0:04:45]} Qc7 {[%emt 0:05:05]} 16. f4 {[%emt 0:03:21]} Bg4 {[%emt 0:04:10]} 17. Be2 {[%emt 0:00:52]} Be6 {[%emt 0:05:46]} 18. f5 {[%emt 0:02:14]} Bd7 {[%emt 0:02:59]} 19. fxg6 {[%emt 0:00:59]} fxg6 {[%emt 0:00:30]} 20. Qg5 {[%emt 0:00:51]} Bg4 {[%emt 0:03:36]} 21. Bxg4 {[%emt 0:01:36]} Nxg4 {[%emt 0:00:31]} 22. e5 {[%emt 0:03:31]} Nxe5 {[%emt 0:00:50]} 23. Ne2 {[%emt 0:01:09]} Raf8 {[%emt 0:03:08]} 24. Nd4 {[%emt 0:01:15]} Rf6 {[%emt 0:00:52]} 25. Qxf6+ {[%emt 0:02:21]} Kxf6 {[%emt 0:00:14]} 26. Rf1+ {[%emt 0:00:05]} Nf3 {[%emt 0:00:14]} 27. Rxf3+ {[%emt 0:00:05]} Ke5 {[%emt 0:00:06]} 28. Re3+ {[%emt 0:00:11]} Kf4 {[%emt 0:01:07]} 29. Ne6+ {[%emt 0:00:12]} Kxe3 {[%emt 0:00:05]} 30. Nxc7 {[%emt 0:00:06]} Kf2 {[%emt 0:00:07]} 31. Rd2+ {[%emt 0:00:29]} Kg3 {[%emt 0:00:07]} 32. Ne6 {[%emt 0:00:42]} Kxh4 {[%emt 0:00:12]} 33. Nf4 {[%emt 0:00:35]} Rg8 {[%emt 0:00:30]} 34. Re2 {[%emt 0:01:30]} e5 {[%emt 0:00:33]} 35. Nd3 {[%emt 0:00:29]} Kg3 {[%emt 0:00:40]} 36. b4 {[%emt 0:00:35]} Re8 {[%emt 0:01:00]} 37. c4 {[%emt 0:00:24]} e4 {[%emt 0:00:14]} 38. Ne1 {[%emt 0:00:13]} d5 {[%emt 0:01:24]} 39. cxd5 {[%emt 0:00:10]} cxd5 {[%emt 0:00:06]} 40. a4 {[%emt 0:00:15]} d4 {[%emt 0:00:34]} 41. Kd2 {[%emt 0:00:47]} h4 {[%emt 0:01:10]} 42. b5 {[%emt 0:00:34]} g5 {[%emt 0:00:15]} 43. a5 {[%emt 0:00:19]} g4 {[%emt 0:00:22]} 44. Nd3 {[%emt 0:11:50]} h3 {[%emt 0:01:33]} 45. gxh3 {[%emt 0:00:23]} gxh3 {[%emt 0:00:11]} 46. Re1 {[%emt 0:07:30]} h2 {[%emt 0:00:38]} 47. Nb4 {[%emt 0:01:10]} d3 {[%emt 0:02:13]} 48. Nc6 {[%emt 0:00:34]} Kg2 {[%emt 0:00:09]} 49. Nxa7 {[%emt 0:01:00]} h1=Q {[%emt 0:02:28]} 50. Rxh1 {[%emt 0:00:07]} Kxh1 {[%emt 0:00:37]} 51. Ke3 {[%emt 0:00:29]} Kg2 {[%emt 0:00:06]} 52. Nc6 {[%emt 0:00:50]} Kf1 {[%emt 0:02:28]} 53. Nd4 {[%emt 0:02:11]} Ke1 {[%emt 0:05:37]} 54. Nb3 {[%emt 0:00:13]} Re5 {[%emt 0:01:45]} 55. b6 {[%emt 0:02:28]} Rb5 {[%emt 0:00:55]} 56. Nd2 {[%emt 0:00:21]} Rxa5 {[%emt 0:05:36]} 57. Nxe4 {[%emt 0:00:22]} Rb5 {[%emt 0:02:36]} 58. Kxd3 {[%emt 0:00:31]} Rxb6 {[%emt 0:00:03]} 59. Ke3 {[%emt 0:00:26]} Rb3+ {[%emt 0:00:11]} 60. Kf4 {[%emt 0:00:08]} Ke2 {[%emt 0:00:07]} 61. Ng3+ {[%emt 0:00:10]} Kd3 {[%emt 0:00:06]} 62. Kf3 {[%emt 0:00:16]} Kd4+ {[%emt 0:01:51]} 63. Kf4 {[%emt 0:00:10]} Rb2 {[%emt 0:00:08]} 64. Nf5+ {[%emt 0:00:15]} Kd5 {[%emt 0:00:07]} 65. Ne3+ {[%emt 0:00:14]} Ke6 {[%emt 0:00:04]} 66. Ke4 {[%emt 0:00:23]} Rb4+ {[%emt 0:00:05]} 67. Kd3 {[%emt 0:00:06]} Ke5 {[%emt 0:00:05]} 68. Nc4+ {[%emt 0:00:15]} Kd5 {[%emt 0:00:05]} 69. Ne3+ {[%emt 0:00:06]} Kc5 {[%emt 0:00:06]} 70. Kc3 {[%emt 0:00:43]} Ra4 {[%emt 0:00:18]} 71. Nc2 {[%emt 0:00:10]} Re4 {[%emt 0:00:12]} 72. Kd3 {[%emt 0:00:14]} Rh4 {[%emt 0:00:06]} 73. Ne3 {[%emt 0:00:15]} Rd4+ {[%emt 0:00:10]} 74. Kc3 {[%emt 0:00:11]} Re4 {[%emt 0:00:05]} 75. Nc2 {[%emt 0:00:06]} Kd5 {[%emt 0:00:51]} 76. Kd3 {[%emt 0:00:26]} Ke5 {[%emt 0:00:12]} 77. Ne3 {[%emt 0:00:33]} Rd4+ {[%emt 0:00:16]} 78. Kc3 {[%emt 0:00:15]} Ke4 {[%emt 0:00:05]} 79. Nc4 {[%emt 0:00:17]} Rd3+ {[%emt 0:00:11]} 80. Kb4 {[%emt 0:00:21]} Kd4 {[%emt 0:00:15]} 81. Na5 {[%emt 0:00:20]} Rh3 {[%emt 0:00:27]} 82. Nb3+ {[%emt 0:00:16]} Kd5 {[%emt 0:00:14]} 83. Ka4 {[%emt 0:02:11]} Kc4 {[%emt 0:00:43]} 84. Na5+ {[%emt 0:00:08]} Kc5 {[%emt 0:00:45]} 85. Nb3+ {[%emt 0:00:13]} Kc4 {[%emt 0:00:39]} 86. Na5+ {[%emt 0:00:08]} Kc3 {[%emt 0:00:06]} 87. Kb5 {[%emt 0:00:10]} Rh5+ {[%emt 0:00:12]} 88. Kb6 {[%emt 0:00:11]} Kd4 {[%emt 0:00:24]} 89. Nc6+ {[%emt 0:00:35]} Kc4 {[%emt 0:00:37]} 90. Na5+ {[%emt 0:00:07]} Kd5 {[%emt 0:00:13]} 91. Kb5 {[%emt 0:00:11]} Rh1 {[%emt 0:01:07]} 92. Ka4 {[%emt 0:00:30]} Rb1 {[%emt 0:00:21]} 93. Nb3 {[%emt 0:00:28]} Rh1 {[%emt 0:00:29]} 94. Kb4 {[%emt 0:01:01]} Rh3 {[%emt 0:00:40]} 95. Na5 {[%emt 0:00:39]} Rh4+ {[%emt 0:00:25]} 96. Kb5 {[%emt 0:00:13]} Rh8 {[%emt 0:00:14]} 97. Ka4 {[%emt 0:00:09]} Rb8 {[%emt 0:00:36]} 98. Nb3 {[%emt 0:00:12]} Kc4 {[%emt 0:00:13]} 99. Na5+ {[%emt 0:00:08]} Kc3 {[%emt 0:00:08]} 100. Ka3 {[%emt 0:01:16]} Rb6 {[%emt 0:01:55]} 101. Ka4 {[%emt 0:00:28]} Rb4+ {[%emt 0:00:08]} 102. Ka3 {[%emt 0:00:06]} Rb6 {[%emt 0:02:24]} 103. Ka4 {[%emt 0:00:17]} Rb1 {[%emt 0:02:28]} 104. Nc6 {[%emt 0:00:32]} Kc4 {[%emt 0:00:35]} 105. Na5+ {[%emt 0:00:08]} Kd4 {[%emt 0:00:25]} 106. Nb3+ {[%emt 0:00:12]} Kd3 {[%emt 0:00:21]} 107. Na5 {[%emt 0:00:59]} Kc3 {[%emt 0:00:55]} 108. Nc6 {[%emt 0:00:14]} Rb7 {[%emt 0:00:23]} 1/2-1/2

[Event "2nd Kalyan Dombivali 2019"]
[Site "Kalyan"]
[Date "2019.01.31"]
[Round "5"]
[White "Saurabh Anand"]
[Black "Vijay, Anand M."]
[Result "1-0"]
[ECO "B00"]
[WhiteElo "2210"]
[BlackElo "1841"]
[Annotator "NA"]
[PlyCount "69"]
[EventDate "2019.01.28"]
[EventType "swiss"]
[EventRounds "10"]
[EventCountry "IND"]
[SourceTitle "playchess.com"]
[Source "ChessBase"]
[SourceQuality "1"]
[TimeControl "5400+30"]

1. e4 {[%emt 0:00:00]} Nc6 {[%emt 0:05:07]} 2. Nf3 {[%emt 0:00:02]} g6 {[%emt 0:01:09] B00: Queen's Fianchetto Defence, Nimzowitsch Defence} (2... d6 3. d4 Nf6 4. Nc3 g6 5. d5 Nb8 6. h3 Bg7 7. Bc4 O-O 8. O-O a6 9. a4 e5 10. dxe6 Bxe6 11. Bxe6 fxe6 12. e5 dxe5 13. Nxe5 Qxd1 14. Nxd1 {½-½ (31) Aronian,L (2765)-Zubov,A (2597) St Petersburg 2018}) 3. Nc3 {[%emt 0:01:26]} Bg7 {[%emt 0:00:16]} 4. d4 {[%emt 0:00:07]} e5 {[%emt 0:00:11]} 5. Bg5 {[%emt 0:01:33]} f6 {[%emt 0:01:07]} 6. Be3 {[%emt 0:00:09]} d6 {[%emt 0:00:05]} 7. h3 {[%emt 0:02:50]} Bh6 $146 {[%emt 0:03:45]} ({Predecessor:} 7... Nge7 8. Bc4 a6 9. a4 Bd7 10. a5 Qc8 11. O-O exd4 12. Nxd4 Nxd4 13. Qxd4 Be6 {½-½ (42) Saric,A (2437)-Jovanovic,Z (2446) Zagreb 2004}) 8. Bxh6 {[%emt 0:03:01]} Nxh6 {[%emt 0:00:22]} 9. dxe5 {[%emt 0:00:09]} fxe5 {[%emt 0:01:20]} 10. Bc4 {[%emt 0:00:11]} Nf7 {[%emt 0:02:57]} 11. Qd2 {[%emt 0:00:59]} h6 {[%emt 0:08:42]} 12. O-O-O {[%emt 0:02:08]} Kf8 {[%emt 0:00:46]} 13. Qd5 {[%emt 0:06:49]} Rh7 {[%emt 0:03:14]} 14. Kb1 {[%emt 0:02:19]} Qe7 {[%emt 0:09:52]} 15. g3 {[%emt 0:11:22]} Ncd8 {[%emt 0:01:39]} 16. Nh4 {[%emt 0:01:15]} Qf6 {[%emt 0:01:18]} (16... Rg7 $16) 17. Qd3 {[%emt 0:07:22]} c6 {[%emt 0:08:06]} 18. Rdf1 {[%emt 0:01:40]} g5 {[%emt 0:02:00]} 19. Ng2 {[%emt 0:00:47]} Be6 {[%emt 0:00:28]} 20. f4 {[%emt 0:00:54]} Bxc4 {[%emt 0:00:11]} 21. Qxc4 {[%emt 0:00:15]} Qe6 {[%emt 0:00:06]} 22. Qe2 {[%emt 0:00:49]} Ke7 {[%emt 0:03:52]} 23. h4 {[%emt 0:01:53]} gxf4 {[%emt 0:03:12]} 24. gxf4 {[%emt 0:00:10]} Kd7 {[%emt 0:06:26]} 25. f5 $18 {[%emt 0:00:56]} Qf6 {[%emt 0:00:49]} 26. Ne3 {[%emt 0:00:08]} b6 {[%emt 0:07:55]} 27. Rfg1 {[%emt 0:01:49]} Nb7 {[%emt 0:03:04]} 28. Ncd5 {[%emt 0:11:26]} Qh8 {[%emt 0:00:52]} 29. Rg6 {[%emt 0:00:14]} Rg7 {[%emt 0:02:04]} 30. Qg4 {[%emt 0:02:19]} h5 {[%emt 0:00:58]} 31. f6+ {[%emt 0:00:31]} hxg4 {[%emt 0:00:27]} 32. fxg7 {[%emt 0:00:05]} Qh6 {[%emt 0:02:28]} 33. Nf6+ {[%emt 0:02:50]} Kc7 {[%emt 0:00:42]} 34. Rxh6 {[%emt 0:00:58]} Nxh6 {[%emt 0:00:07]} 35. Nf5 {[%emt 0:00:03]} 1-0

[Event "2nd Kalyan Dombivali 2019"]
[Site "Kalyan"]
[Date "2019.01.31"]
[Round "5"]
[White "Kumar, Gaurav"]
[Black "Pingale Shivraj"]
[Result "0-1"]
[ECO "C18"]
[WhiteElo "2128"]
[BlackElo "1580"]
[Annotator "NA"]
[PlyCount "88"]
[EventDate "2019.01.28"]
[EventType "swiss"]
[EventRounds "10"]
[EventCountry "IND"]
[SourceTitle "playchess.com"]
[Source "ChessBase"]
[SourceQuality "1"]
[TimeControl "5400+30"]

1. e4 {[%emt 0:00:00]} e6 {[%emt 0:00:00]} 2. d4 {[%emt 0:00:00]} d5 {[%emt 0:00:00]} 3. Nc3 {[%emt 0:00:00]} Bb4 {[%emt 0:00:01]} 4. e5 {[%emt 0:00:00]} c5 {[%emt 0:00:05]} 5. a3 {[%emt 0:00:03]} Bxc3+ {[%emt 0:00:10]} 6. bxc3 {[%emt 0:00:06]} Qa5 {[%emt 0:00:07]} 7. Bd2 {[%emt 0:01:03]} Qa4 {[%emt 0:00:43]} 8. Qg4 {[%emt 0:04:17]} g6 {[%emt 0:03:44]} 9. Qf4 {[%emt 0:06:59]} Qxc2 {[%emt 0:10:25]} 10. Nf3 {[%emt 0:01:01]} Qe4+ {[%emt 0:02:12]} 11. Qxe4 {[%emt 0:00:43]} dxe4 {[%emt 0:00:07]} 12. Ng5 {[%emt 0:00:13]} f5 {[%emt 0:04:52]} 13. Bc4 {[%emt 0:36:06]} Nc6 {[%emt 0:11:43]} 14. Nxe6 {[%emt 0:03:15]} Bxe6 $11 {[%emt 0:01:26]} 15. Bxe6 {[%emt 0:00:15]} cxd4 {[%emt 0:02:25]} 16. Rb1 {[%emt 0:00:27]} Rb8 {[%emt 0:08:00]} 17. cxd4 {[%emt 0:00:33]} Nxd4 {[%emt 0:03:32]} 18. Ba2 {[%emt 0:00:42]} Ne7 {[%emt 0:02:38]} 19. Bc3 {[%emt 0:04:03]} Nec6 {[%emt 0:00:45]} 20. Rb2 {[%emt 0:06:46]} Ke7 {[%emt 0:03:12]} 21. O-O {[%emt 0:00:52]} Rhd8 {[%emt 0:01:37]} 22. Rfb1 {[%emt 0:02:51]} b6 {[%emt 0:01:13]} 23. Bd2 {[%emt 0:05:45]} Ne6 {[%emt 0:02:38]} 24. f3 {[%emt 0:12:12]} exf3 {[%emt 0:01:43]} 25. gxf3 {[%emt 0:00:07]} Nxe5 {[%emt 0:00:36]} 26. Bb4+ {[%emt 0:01:06]} Kf6 {[%emt 0:12:33]} 27. Bxe6 {[%emt 0:00:27]} Nxf3+ {[%emt 0:07:35]} 28. Kf2 {[%emt 0:03:20]} Nxh2 {[%emt 0:01:00]} 29. Re2 {[%emt 0:01:08]} Ng4+ {[%emt 0:00:44]} 30. Kg2 {[%emt 0:00:27]} Rd3 {[%emt 0:02:19]} 31. Rbe1 {[%emt 0:05:20]} Re8 {[%emt 0:01:42]} 32. Ba2 {[%emt 0:03:23]} Rxe2+ {[%emt 0:01:17]} 33. Rxe2 {[%emt 0:00:02]} f4 {[%emt 0:01:15]} 34. Re6+ {[%emt 0:02:29]} Kg5 {[%emt 0:00:53]} 35. Bb1 {[%emt 0:00:52]} Rg3+ {[%emt 0:03:06]} 36. Kf1 {[%emt 0:00:34]} f3 {[%emt 0:00:42]} 37. Bd2+ {[%emt 0:00:24]} Kh5 {[%emt 0:01:18]} 38. Bf4 {[%emt 0:00:28]} Nh2+ {[%emt 0:00:49]} 39. Ke1 {[%emt 0:00:27]} Rg1+ {[%emt 0:00:12]} 40. Kf2 {[%emt 0:00:36]} Rg2+ {[%emt 0:00:11]} 41. Ke3 {[%emt 0:00:08]} Re2+ {[%emt 0:00:07]} 42. Kd4 {[%emt 0:00:05]} Rxe6 {[%emt 0:00:45]} 43. Bxh2 {[%emt 0:00:02]} Re2 {[%emt 0:00:31]} 44. Bg3 {[%emt 0:00:29]} Kg4 {[%emt 0:00:06]} 0-1

[Event "2nd Kalyan Dombivali 2019"]
[Site "Kalyan"]
[Date "2019.01.31"]
[Round "5"]
[White "Saranya, J."]
[Black "Joshi, Nikhil C."]
[Result "1-0"]
[ECO "B10"]
[WhiteElo "2094"]
[BlackElo "2088"]
[Annotator "NA"]
[PlyCount "79"]
[EventDate "2019.01.28"]
[EventType "swiss"]
[EventRounds "10"]
[EventCountry "IND"]
[SourceTitle "playchess.com"]
[Source "ChessBase"]
[SourceQuality "1"]
[TimeControl "5400+30"]

1. e4 {[%emt 0:06:06]} c6 {[%emt 0:00:00]} 2. Nc3 {[%emt 0:01:10]} d5 {[%emt 0:00:00]} 3. Nf3 {[%emt 0:00:04]} dxe4 {[%emt 0:00:00]} 4. Nxe4 {[%emt 0:00:04]} Bg4 {[%emt 0:00:13]} 5. Bc4 {[%emt 0:04:17]} e6 {[%emt 0:00:25]} 6. h3 {[%emt 0:01:13]} Bxf3 {[%emt 0:00:22]} 7. Qxf3 {[%emt 0:00:02]} Nd7 {[%emt 0:04:34]} 8. Qe2 {[%emt 0:04:55] B11: Caro-Kann: Two Knights Variation} (8. Qg3 Ndf6 9. d3 Nxe4 10. dxe4 Qd4 11. Bd3 Bd6 12. Qe3 Bc5 13. Qxd4 Bxd4 14. c3 Bb6 15. Ke2 e5 16. Bc4 Nf6 17. Kf3 a5 18. a4 Rd8 19. Bg5 h6 20. Bxf6 gxf6 {½-½ (20) Pulpan,J (2337)-Meduna,E (2392) Ostrava 2016}) 8... Be7 {[%emt 0:03:03]} 9. O-O {[%emt 0:01:03]} Ngf6 {[%emt 0:00:18]} 10. Rd1 $146 {[%emt 0:03:58]} ({Predecessor:} 10. f4 Nxe4 11. Qxe4 Nf6 12. Qe2 Qd4+ 13. Kh2 Qe4 14. Qxe4 Nxe4 15. d3 Nd6 {½-½ (41) Maris,I (1998)-Lesman,F (2074) Hoogeveen 2011}) 10... Nxe4 {[%emt 0:02:43]} 11. Qxe4 {[%emt 0:00:12]} O-O {[%emt 0:00:06]} 12. d4 {[%emt 0:01:10]} Bf6 {[%emt 0:03:21]} 13. Bf4 {[%emt 0:06:35]} Nb6 {[%emt 0:02:12]} 14. Bb3 {[%emt 0:05:11]} g6 {[%emt 0:00:51]} 15. Be5 {[%emt 0:02:51]} Qe7 {[%emt 0:01:14]} 16. a4 {[%emt 0:02:32]} a5 {[%emt 0:01:08]} 17. c3 {[%emt 0:05:15]} Nd5 {[%emt 0:05:30]} 18. c4 {[%emt 0:03:30]} Nb4 {[%emt 0:01:08]} 19. Bf4 {[%emt 0:01:22]} Rfd8 {[%emt 0:01:06]} 20. Be3 {[%emt 0:02:17]} Rd7 {[%emt 0:02:30]} 21. Rd2 {[%emt 0:02:32]} Rad8 {[%emt 0:00:33]} 22. Rad1 {[%emt 0:00:16]} Bg7 {[%emt 0:02:30]} 23. f4 {[%emt 0:02:19]} Qf6 {[%emt 0:11:00]} 24. Qf3 {[%emt 0:02:46]} Qe7 $11 {[%emt 0:02:04]} 25. g4 {[%emt 0:02:34]} Kh8 {[%emt 0:16:36]} 26. Kh1 {[%emt 0:02:38]} Kg8 {[%emt 0:00:04]} 27. Bf2 {[%emt 0:04:10]} Kh8 {[%emt 0:01:49]} 28. Qe4 {[%emt 0:03:47]} Kg8 {[%emt 0:00:58]} 29. h4 {[%emt 0:04:26]} f5 {[%emt 0:02:49]} 30. gxf5 {[%emt 0:04:24]} exf5 {[%emt 0:01:07]} 31. Qxe7 {[%emt 0:00:28]} Rxe7 {[%emt 0:00:01]} 32. d5 {[%emt 0:01:08]} Red7 {[%emt 0:03:11]} 33. Bb6 {[%emt 0:03:20]} Re8 {[%emt 0:00:50]} 34. d6 {[%emt 0:04:33]} Bh6 {[%emt 0:06:34]} 35. c5+ {[%emt 0:01:19]} Nd5 {[%emt 0:00:56]} 36. Rxd5 {[%emt 0:07:35]} cxd5 {[%emt 0:00:05]} 37. Rxd5 {[%emt 0:00:14]} Kf8 {[%emt 0:01:48]} 38. Bc4 {[%emt 0:00:53]} Re4 {[%emt 0:02:33]} 39. Bb5 {[%emt 0:00:00]} Ke8 {[%emt 0:00:05]} 40. Re5+ 1-0

[Event "2nd Kalyan Dombivali 2019"]
[Site "Kalyan"]
[Date "2019.01.31"]
[Round "5"]
[White "Ahmed, Feroz"]
[Black "Gusain, Himal"]
[Result "0-1"]
[ECO "A13"]
[WhiteElo "1919"]
[BlackElo "2371"]
[Annotator "NA RC"]
[PlyCount "60"]
[EventDate "2019.01.28"]
[EventType "swiss"]
[EventRounds "10"]
[EventCountry "IND"]
[SourceTitle "playchess.com"]
[Source "ChessBase"]
[SourceQuality "1"]
[TimeControl "5400+30"]

1. c4 {[%emt 0:00:00]} e6 {[%emt 0:00:12]} 2. g3 {[%emt 0:01:18]} c5 {[%emt 0:01:33]} 3. Bg2 {[%emt 0:03:11]} Nc6 {[%emt 0:00:16]} 4. Nf3 {[%emt 0:02:22]} g5 {[%emt 0:00:24]} 5. h3 {[%emt 0:05:20]} Bg7 {[%emt 0:00:07]} 6. O-O {[%emt 0:00:45]} h5 {[%emt 0:00:16]} 7. d3 {[%emt 0:03:39]} g4 {[%emt 0:00:24]} 8. hxg4 {[%emt 0:01:04]} hxg4 {[%emt 0:00:07]} 9. Nh2 {[%emt 0:00:04]} f5 {[%emt 0:03:13]} 10. e4 {[%emt 0:01:13]} Qf6 {[%emt 0:00:06]} 11. exf5 {[%emt 0:02:01]} Qxf5 {[%emt 0:00:08]} 12. Nxg4 {[%emt 0:06:11]} b6 {[%emt 0:01:41]} 13. Nc3 {[%emt 0:02:27]} Bxc3 {[%emt 0:00:10]} 14. bxc3 {[%emt 0:00:25]} Bb7 {[%emt 0:00:08]} 15. d4 {[%emt 0:10:05]} O-O-O {[%emt 0:01:45]} 16. Re1 {[%emt 0:01:30]} Na5 {[%emt 0:00:00]} 17. Rf1 {[%emt 0:00:00]} Nc6 {[%emt 0:01:00]} 18. Re1 {[%emt 0:01:00]} Na5 {[%emt 0:01:38]} 19. Bxb7+ {[%emt 0:13:20]} Nxb7 {[%emt 0:00:05]} 20. Bf4 {[%emt 0:00:57]} Ne7 {[%emt 0:03:54]} 21. dxc5 {[%emt 0:04:41]} Qxc5 {[%emt 0:06:27]} 22. Ne5 {[%emt 0:01:39]} Rh7 {[%emt 0:05:36]} 23. Qa4 $2 {[%emt 0:05:13]} (23. Qd3 $16 Nf5 24. Qe4) 23... d6 {[%emt 0:03:16]} 24. Qxa7 {[%emt 0:07:23] [#]} Nc6 $1 {[%emt 0:00:59]} 25. Qa4 {[%emt 0:10:37]} Nxe5 {[%emt 0:00:40]} 26. Bxe5 {[%emt 0:00:39]} dxe5 {[%emt 0:00:05]} 27. Rad1 $19 {[%emt 0:01:53]} Rdh8 {[%emt 0:00:39]} 28. Kf1 {[%emt 0:00:18]} Rf8 {[%emt 0:00:33]} 29. Qc2 {[%emt 0:02:06]} Rh1+ {[%emt 0:00:10]} 30. Kg2 {[%emt 0:00:36]} Rh5 0-1

[Event "2nd Kalyan Dombivali 2019"]
[Site "Kalyan"]
[Date "2019.01.31"]
[Round "5"]
[White "Sparsh Khandelwal"]
[Black "Kathmale, Sameer"]
[Result "0-1"]
[ECO "B18"]
[WhiteElo "1823"]
[BlackElo "2312"]
[Annotator "NA"]
[PlyCount "90"]
[EventDate "2019.01.28"]
[EventType "swiss"]
[EventRounds "10"]
[EventCountry "IND"]
[SourceTitle "playchess.com"]
[Source "ChessBase"]
[SourceQuality "1"]
[TimeControl "5400+30"]

1. e4 {[%emt 0:00:00]} c6 {[%emt 0:01:11]} 2. d4 {[%emt 0:00:06]} d5 {[%emt 0:00:00]} 3. Nc3 {[%emt 0:00:10]} dxe4 {[%emt 0:00:22]} 4. Nxe4 {[%emt 0:00:06]} Bf5 {[%emt 0:00:08]} 5. Ng3 {[%emt 0:00:06]} Bg6 {[%emt 0:00:04]} 6. Nh3 {[%emt 0:01:37]} Nd7 {[%emt 0:00:51]} 7. Nf4 {[%emt 0:00:36]} e5 {[%emt 0:00:19]} 8. dxe5 {[%emt 0:02:49]} Qa5+ {[%emt 0:01:54]} 9. c3 {[%emt 0:00:21]} Qxe5+ {[%emt 0:00:23]} 10. Be2 {[%emt 0:01:28]} O-O-O {[%emt 0:00:18]} 11. Qa4 {[%emt 0:04:03]} Bc5 {[%emt 0:06:09]} 12. O-O {[%emt 0:00:08]} Nb6 {[%emt 0:04:20]} 13. Nxg6 {[%emt 0:13:56]} hxg6 {[%emt 0:04:38]} 14. Qe4 {[%emt 0:00:44]} Bd6 {[%emt 0:05:31]} 15. Qxe5 {[%emt 0:07:29]} Bxe5 {[%emt 0:00:06]} 16. Be3 {[%emt 0:00:15]} f5 {[%emt 0:03:51]} 17. Bxb6 {[%emt 0:06:43]} axb6 {[%emt 0:02:57]} 18. Rfd1 {[%emt 0:00:07]} Nf6 {[%emt 0:02:43]} 19. Rxd8+ {[%emt 0:01:16]} (19. Rd4 $2 {[%mdl 8192]}) (19. Bc4 $11 {and White has nothing to worry.}) 19... Kxd8 {[%emt 0:00:09]} 20. Rd1+ {[%emt 0:00:04]} Kc7 {[%emt 0:00:09]} 21. Bf3 {[%emt 0:03:10]} b5 {[%emt 0:00:25]} 22. a3 {[%emt 0:00:48]} Nd7 {[%emt 0:02:05]} 23. Re1 {[%emt 0:05:48]} Kd6 {[%emt 0:00:27]} 24. Bd1 {[%emt 0:01:03]} Nc5 {[%emt 0:01:38]} 25. Bc2 {[%emt 0:00:55]} Na4 {[%emt 0:01:49]} 26. Rb1 {[%emt 0:04:14]} Bxg3 {[%emt 0:09:16]} 27. hxg3 {[%emt 0:01:17]} Kc5 {[%emt 0:00:16]} 28. Bxa4 {[%emt 0:02:19]} bxa4 {[%emt 0:00:04]} 29. Rd1 $1 {[%emt 0:00:04]} Re8 $15 {[%emt 0:07:45]} 30. Kf1 {[%emt 0:00:54]} b5 {[%emt 0:08:17]} 31. f3 {[%emt 0:01:25]} Kc4 {[%emt 0:03:03]} 32. Rd4+ {[%emt 0:00:41]} Kb3 {[%emt 0:00:22]} 33. Rb4+ {[%emt 0:00:06]} Ka2 {[%emt 0:00:29]} 34. c4 {[%emt 0:00:50]} Re5 {[%emt 0:01:58]} 35. cxb5 {[%emt 0:00:47]} cxb5 {[%emt 0:00:27]} 36. Kf2 {[%emt 0:05:00]} Rc5 {[%emt 0:00:16]} 37. Ke3 {[%emt 0:00:25]} Rc2 {[%emt 0:02:05]} 38. Rxb5 {[%emt 0:00:05]} Rxb2 {[%emt 0:00:07]} 39. Ra5 {[%emt 0:00:09]} Kxa3 {[%emt 0:00:20]} 40. Ra6 {[%emt 0:02:12]} Rb4 {[%emt 0:03:27]} 41. Rxg6 {[%emt 0:00:17]} Kb2 {[%emt 0:00:31]} 42. Rg5 {[%emt 0:04:09]} a3 {[%emt 0:01:14]} 43. Rxf5 {[%emt 0:00:03]} a2 {[%emt 0:00:11]} 44. Ra5 {[%emt 0:00:03]} Rb3+ {[%emt 0:00:59]} 45. Kd2 {[%emt 0:00:03]} a1=Q {[%emt 0:00:08]} 0-1

[Event "2nd Kalyan Dombivali 2019"]
[Site "Kalyan"]
[Date "2019.01.31"]
[Round "5"]
[White "Subramanian, R M"]
[Black "Mayekar Ayush"]
[Result "1-0"]
[ECO "C26"]
[WhiteElo "1780"]
[BlackElo "1389"]
[Annotator "NA"]
[PlyCount "59"]
[EventDate "2019.01.28"]
[EventType "swiss"]
[EventRounds "10"]
[EventCountry "IND"]
[SourceTitle "playchess.com"]
[Source "ChessBase"]
[SourceQuality "1"]
[TimeControl "5400+30"]

1. e4 {[%emt 0:00:00]} e5 {[%emt 0:00:00]} 2. Bc4 {[%emt 0:00:00]} Nf6 {[%emt 0:01:05]} 3. Nc3 {[%emt 0:00:00]} Bc5 {[%emt 0:00:31]} 4. d3 {[%emt 0:00:00]} h6 {[%emt 0:00:20]} 5. f4 {[%emt 0:00:01]} d6 {[%emt 0:01:30]} 6. Nf3 {[%emt 0:00:07]} Nc6 {[%emt 0:00:54]} 7. f5 {[%emt 0:02:14]} Bd7 {[%emt 0:05:53]} 8. a3 {[%emt 0:00:20]} a6 {[%emt 0:05:30]} 9. Qe2 {[%emt 0:02:12]} Qe7 {[%emt 0:10:16]} 10. Be3 {[%emt 0:01:45]} Nd4 {[%emt 0:05:56]} 11. Bxd4 {[%emt 0:02:51]} exd4 {[%emt 0:04:46]} 12. Nd5 {[%emt 0:04:29]} Nxd5 {[%emt 0:02:34]} 13. Bxd5 {[%emt 0:00:02]} O-O-O {[%emt 0:00:46]} 14. b4 {[%emt 0:09:38]} Ba7 {[%emt 0:03:26]} 15. O-O {[%emt 0:02:19]} Bxf5 {[%emt 0:02:41]} 16. Bxf7 {[%emt 0:08:46]} Be6 {[%emt 0:20:02]} 17. Bxe6+ {[%emt 0:06:37]} Qxe6 {[%emt 0:00:15]} 18. Qd2 {[%emt 0:05:17]} g5 {[%emt 0:02:31]} 19. a4 {[%emt 0:00:15]} Bb6 {[%emt 0:05:08]} 20. a5 {[%emt 0:02:23]} Ba7 {[%emt 0:00:36]} 21. b5 {[%emt 0:00:20]} d5 {[%emt 0:01:56]} 22. bxa6 {[%emt 0:00:35]} dxe4 {[%emt 0:07:44]} 23. axb7+ {[%emt 0:00:26]} Kb8 {[%emt 0:02:09]} 24. dxe4 {[%emt 0:10:45]} Qxe4 25. Qd3 {[%emt 0:02:23]} Qxd3 {[%emt 0:03:35]} 26. cxd3 {[%emt 0:00:02]} Kxb7 {[%emt 0:00:14]} 27. Ne5 {[%emt 0:00:30]} Rd5 {[%emt 0:03:11]} 28. Rab1+ {[%emt 0:00:47]} Kc8 {[%emt 0:03:11]} 29. Nc6 {[%emt 0:00:41]} Bc5 {[%emt 0:01:00]} 30. Rf7 {[%emt 0:00:35]} 1-0